[Event "*** Titled Tuesday Blitz"]
[Site "Chess.com"]
[Date "2020.01.07"]
[Round "8"]
[White "Caracternin123"]
[Black "Witik"]
[Result "1-0"]
[WhiteElo "2547"]
[BlackElo "2669"]
[TimeControl "180+2"]
[EndTime "14:55:38 PST"]
[Termination "Caracternin123 won by resignation"]

1. d4 {[%clk 0:03:01.9]} 1... Nf6 {[%clk 0:03:00]} 2. Nf3 {[%clk 0:03:03.4]}
2... g6 {[%clk 0:03:00.7]} 3. Bg5 {[%clk 0:03:04.3]} 3... Bg7 {[%clk 0:02:57.6]}
4. Nbd2 {[%clk 0:03:05.6]} 4... d5 {[%clk 0:02:58.3]} 5. e3 {[%clk 0:03:05.4]}
5... O-O {[%clk 0:02:58.9]} 6. c4 {[%clk 0:03:06.3]} 6... c5 {[%clk 0:02:56.8]}
7. dxc5 {[%clk 0:02:40.9]} 7... Na6 {[%clk 0:02:41.3]} 8. cxd5 {[%clk
0:02:25.5]} 8... Nxc5 {[%clk 0:02:39.9]} 9. Bc4 {[%clk 0:02:23.6]} 9... Nxd5
{[%clk 0:02:31.1]} 10. O-O {[%clk 0:02:23.2]} 10... h6 {[%clk 0:02:26.9]} 11.
Bh4 {[%clk 0:02:20.4]} 11... Nb4 {[%clk 0:02:11.8]} 12. Nb3 {[%clk 0:02:10.8]}
12... Ncd3 {[%clk 0:01:41.3]} 13. a3 {[%clk 0:01:24.3]} 13... Nxb2 {[%clk
0:01:39.1]} 14. Qxd8 {[%clk 0:01:26.2]} 14... Rxd8 {[%clk 0:01:39.6]} 15. Bxe7
{[%clk 0:01:27.2]} 15... Re8 {[%clk 0:01:37.4]} 16. Bxb4 {[%clk 0:01:13.8]}
16... Nxc4 {[%clk 0:01:38]} 17. Rac1 {[%clk 0:01:15.3]} 17... b5 {[%clk
0:01:13]} 18. Nfd4 {[%clk 0:01:07.2]} 18... a5 {[%clk 0:01:03.9]} 19. Nxb5
{[%clk 0:00:52.1]} 19... axb4 {[%clk 0:00:44.6]} 20. Nc7 {[%clk 0:00:51.2]}
20... Ba6 {[%clk 0:00:23.5]} 21. axb4 {[%clk 0:00:39.6]} 21... Nxe3 {[%clk
0:00:15.1]} 22. Rfe1 {[%clk 0:00:35.5]} 22... Bb7 {[%clk 0:00:04.6]} 23. Nxe8
{[%clk 0:00:33.1]} 23... Nd5 {[%clk 0:00:04.7]} 24. Nxg7 {[%clk 0:00:30.6]}
24... Kxg7 {[%clk 0:00:05.3]} 25. Nc5 {[%clk 0:00:32.5]} 25... Rb8 {[%clk
0:00:03.9]} 26. Rb1 {[%clk 0:00:27.2]} 26... Bc6 {[%clk 0:00:04.3]} 27. Rec1
{[%clk 0:00:16.4]} 27... Rxb4 {[%clk 0:00:04.9]} 28. Rxb4 {[%clk 0:00:17.1]}
28... Nxb4 {[%clk 0:00:06.8]} 29. Na6 {[%clk 0:00:17.4]} 29... Nxa6 {[%clk
0:00:05.8]} 30. Rxc6 {[%clk 0:00:19]} 30... Nb4 {[%clk 0:00:07.7]} 31. Rd6
{[%clk 0:00:20.3]} 31... Na2 {[%clk 0:00:05.5]} 32. Rd4 {[%clk 0:00:18.4]} 32...
Nc3 {[%clk 0:00:06.5]} 33. Kf1 {[%clk 0:00:19.5]} 33... Nb5 {[%clk 0:00:07.6]}
34. Rd7 {[%clk 0:00:19.5]} 34... Na3 {[%clk 0:00:06.5]} 35. Ke2 {[%clk
0:00:16.9]} 35... Nc4 {[%clk 0:00:06.3]} 36. f4 {[%clk 0:00:18.1]} 36... Nb6
{[%clk 0:00:06.9]} 37. Rd6 {[%clk 0:00:19.8]} 37... Nc8 {[%clk 0:00:06.7]} 38.
Rd7 {[%clk 0:00:19.6]} 38... Nb6 {[%clk 0:00:07.7]} 39. Rd8 {[%clk 0:00:21]}
39... Na4 {[%clk 0:00:06.7]} 40. Kf3 {[%clk 0:00:16.6]} 40... Nc5 {[%clk
0:00:07.3]} 41. Rc8 {[%clk 0:00:18]} 41... Ne6 {[%clk 0:00:07.4]} 42. Rc4 {[%clk
0:00:19.5]} 42... Kf6 {[%clk 0:00:07.7]} 43. g4 {[%clk 0:00:20.9]} 43... g5
{[%clk 0:00:07.2]} 44. f5 {[%clk 0:00:21.7]} 44... Nd8 {[%clk 0:00:07.2]} 45.
Ke4 {[%clk 0:00:22.8]} 45... Nb7 {[%clk 0:00:08.4]} 46. Rc6+ {[%clk 0:00:23.7]}
46... Kg7 {[%clk 0:00:09.3]} 47. Ke5 {[%clk 0:00:24.8]} 47... Na5 {[%clk
0:00:09.7]} 48. Rc3 {[%clk 0:00:23.8]} 48... Nb7 {[%clk 0:00:10.6]} 49. h3
{[%clk 0:00:22.6]} 49... Nd8 {[%clk 0:00:11]} 50. Kd6 {[%clk 0:00:22.7]} 50...
Nb7+ {[%clk 0:00:09.7]} 51. Kc7 {[%clk 0:00:20.9]} 51... Na5 {[%clk 0:00:10.3]}
52. Kb6 {[%clk 0:00:22.2]} 1-0

[Event "*** Titled Tuesday Blitz"]
[Site "Chess.com"]
[Date "2020.01.07"]
[Round "8"]
[White "Proteuo"]
[Black "enriquetejedor"]
[Result "1-0"]
[WhiteElo "2376"]
[BlackElo "2476"]
[TimeControl "180+2"]
[EndTime "14:55:41 PST"]
[Termination "Proteuo won by resignation"]

1. e4 {[%clk 0:03:01.2]} 1... e6 {[%clk 0:02:58.6]} 2. d4 {[%clk 0:03:00.1]}
2... d5 {[%clk 0:02:59.6]} 3. Nd2 {[%clk 0:02:58.5]} 3... c5 {[%clk 0:02:48.6]}
4. Ngf3 {[%clk 0:02:58.4]} 4... Nc6 {[%clk 0:02:39.8]} 5. Bb5 {[%clk 0:02:56.8]}
5... Nf6 {[%clk 0:02:19.7]} 6. exd5 {[%clk 0:02:52.3]} 6... Qxd5 {[%clk
0:01:56.9]} 7. O-O {[%clk 0:02:40]} 7... cxd4 {[%clk 0:01:54.2]} 8. Bc4 {[%clk
0:02:35.9]} 8... Qd7 {[%clk 0:01:31.6]} 9. Nb3 {[%clk 0:02:34.1]} 9... a6 {[%clk
0:01:29.7]} 10. Nbxd4 {[%clk 0:02:32]} 10... Nxd4 {[%clk 0:01:31.6]} 11. Nxd4
{[%clk 0:02:32.1]} 11... Qc7 {[%clk 0:01:30.5]} 12. Bb3 {[%clk 0:02:24]} 12...
Bd6 {[%clk 0:01:29.7]} 13. h3 {[%clk 0:02:20.6]} 13... Bd7 {[%clk 0:01:30.9]}
14. Re1 {[%clk 0:02:19.9]} 14... O-O-O {[%clk 0:01:30.5]} 15. Qe2 {[%clk
0:02:12.3]} 15... e5 {[%clk 0:01:24.2]} 16. Nf3 {[%clk 0:02:07.7]} 16... Bc6
{[%clk 0:01:06.2]} 17. Bg5 {[%clk 0:02:01]} 17... h6 {[%clk 0:01:00]} 18. Be3
{[%clk 0:01:49.1]} 18... Rhe8 {[%clk 0:00:48.9]} 19. c4 {[%clk 0:01:46.9]} 19...
Ne4 {[%clk 0:00:46.6]} 20. Rac1 {[%clk 0:01:39]} 20... Nc5 {[%clk 0:00:39.3]}
21. Bc2 {[%clk 0:01:34.8]} 21... e4 {[%clk 0:00:39.4]} 22. Nd4 {[%clk 0:01:34]}
22... Nd3 {[%clk 0:00:25.1]} 23. Bxd3 {[%clk 0:01:27.1]} 23... exd3 {[%clk
0:00:27]} 24. Qxd3 {[%clk 0:01:22.4]} 24... Be4 {[%clk 0:00:28.5]} 25. Qb3
{[%clk 0:01:11.5]} 25... Bh2+ {[%clk 0:00:16.3]} 26. Kh1 {[%clk 0:01:11.2]}
26... Be5 {[%clk 0:00:16.6]} 27. Nb5 {[%clk 0:01:04.6]} 27... Qd7 {[%clk
0:00:14.1]} 28. Bb6 {[%clk 0:00:57.9]} 28... Bc6 {[%clk 0:00:03.1]} 29. Na7+
{[%clk 0:00:51]} 29... Kb8 {[%clk 0:00:03.9]} 30. Rcd1 {[%clk 0:00:44.1]} 30...
Qf5 {[%clk 0:00:02.6]} 31. Nxc6+ {[%clk 0:00:41.6]} 31... bxc6 {[%clk
0:00:03.1]} 32. Bxd8+ {[%clk 0:00:41.4]} 32... Kc8 {[%clk 0:00:04.3]} 33. Bb6
{[%clk 0:00:28.2]} 33... Qf4 {[%clk 0:00:05.4]} 34. Qg3 {[%clk 0:00:24.4]} 34...
Qxg3 {[%clk 0:00:04.3]} 35. fxg3 {[%clk 0:00:25.1]} 35... Re6 {[%clk 0:00:05.2]}
36. c5 {[%clk 0:00:22.3]} 36... Bxb2 {[%clk 0:00:02.5]} 37. Rd8+ {[%clk
0:00:18.8]} 37... Kb7 {[%clk 0:00:03.6]} 38. Rd7+ {[%clk 0:00:19.8]} 38... Kc8
{[%clk 0:00:04.9]} 39. Rc7+ {[%clk 0:00:20.8]} 39... Kb8 {[%clk 0:00:06.4]} 40.
Rxe6 {[%clk 0:00:21.7]} 40... fxe6 {[%clk 0:00:08.3]} 41. Re7 {[%clk 0:00:22.1]}
41... e5 {[%clk 0:00:08.5]} 42. Rxg7 {[%clk 0:00:23.1]} 42... Bc3 {[%clk
0:00:05.5]} 43. Re7 {[%clk 0:00:21.7]} 43... a5 {[%clk 0:00:05.9]} 44. g4 {[%clk
0:00:20.1]} 44... a4 {[%clk 0:00:06.5]} 45. h4 {[%clk 0:00:21]} 45... a3 {[%clk
0:00:07.1]} 46. g5 {[%clk 0:00:22.1]} 46... hxg5 {[%clk 0:00:07.6]} 47. hxg5
{[%clk 0:00:23.1]} 47... Kc8 {[%clk 0:00:08.1]} 48. g6 {[%clk 0:00:23.3]} 48...
e4 {[%clk 0:00:10]} 49. g7 {[%clk 0:00:23.7]} 49... Bxg7 {[%clk 0:00:11.1]} 50.
Rxg7 {[%clk 0:00:24.7]} 50... e3 {[%clk 0:00:13]} 51. Re7 {[%clk 0:00:25.3]}
51... e2 {[%clk 0:00:13.6]} 52. Rxe2 {[%clk 0:00:25.8]} 52... Kb7 {[%clk
0:00:15.2]} 53. Re3 {[%clk 0:00:26.3]} 53... Ka6 {[%clk 0:00:16.4]} 54. Rxa3+
{[%clk 0:00:27]} 54... Kb5 {[%clk 0:00:18.2]} 55. Rf3 {[%clk 0:00:27.5]} 55...
Ka4 {[%clk 0:00:19.1]} 56. g4 {[%clk 0:00:28.3]} 1-0

[Event "*** Titled Tuesday Blitz"]
[Site "Chess.com"]
[Date "2020.01.07"]
[Round "8"]
[White "Indianlad"]
[Black "JustaTrickstar"]
[Result "1-0"]
[WhiteElo "2916"]
[BlackElo "2739"]
[TimeControl "180+2"]
[EndTime "14:55:42 PST"]
[Termination "Indianlad won by resignation"]

1. c4 {[%clk 0:03:01.9]} 1... e6 {[%clk 0:02:56.1]} 2. g3 {[%clk 0:03:01.9]}
2... d5 {[%clk 0:02:56.7]} 3. Bg2 {[%clk 0:03:03.5]} 3... Nf6 {[%clk 0:02:58.1]}
4. Nf3 {[%clk 0:03:05.1]} 4... dxc4 {[%clk 0:02:58.4]} 5. O-O {[%clk 0:03:05.5]}
5... a6 {[%clk 0:02:57.4]} 6. a4 {[%clk 0:03:04.3]} 6... Nc6 {[%clk 0:02:57.1]}
7. Na3 {[%clk 0:03:05]} 7... Na5 {[%clk 0:02:58]} 8. Qc2 {[%clk 0:03:05.3]} 8...
Qd5 {[%clk 0:02:58.5]} 9. Rd1 {[%clk 0:03:03.5]} 9... Bd7 {[%clk 0:02:51.1]} 10.
d3 {[%clk 0:03:03.8]} 10... cxd3 {[%clk 0:02:26.5]} 11. Rxd3 {[%clk 0:03:04.5]}
11... Qc6 {[%clk 0:02:27.7]} 12. Qd1 {[%clk 0:02:32.5]} 12... Qxa4 {[%clk
0:02:09.3]} 13. b3 {[%clk 0:02:24.2]} 13... Qb4 {[%clk 0:02:10.1]} 14. Nc2
{[%clk 0:02:09.2]} 14... Qb6 {[%clk 0:01:59.7]} 15. Be3 {[%clk 0:02:00.6]} 15...
c5 {[%clk 0:01:50.7]} 16. Ne5 {[%clk 0:02:01.9]} 16... Bb5 {[%clk 0:01:47.9]}
17. b4 {[%clk 0:02:00.8]} 17... Nc6 {[%clk 0:01:33.3]} 18. Nxc6 {[%clk 0:01:58]}
18... Bxc6 {[%clk 0:01:34]} 19. bxc5 {[%clk 0:01:37]} 19... Bxc5 {[%clk
0:01:34]} 20. Rb1 {[%clk 0:01:33.3]} 20... Qa7 {[%clk 0:01:34.8]} 21. Bxc6+
{[%clk 0:01:25]} 21... bxc6 {[%clk 0:01:35.5]} 22. Nd4 {[%clk 0:01:26.6]} 22...
Bxd4 {[%clk 0:01:03.8]} 23. Bxd4 {[%clk 0:01:27.2]} 23... Qe7 {[%clk 0:01:04.9]}
24. Qc2 {[%clk 0:01:26]} 24... O-O {[%clk 0:00:36.9]} 25. Bc5 {[%clk 0:01:27]}
25... Qc7 {[%clk 0:00:38.1]} 26. Bd6 {[%clk 0:01:28.1]} 26... Qc8 {[%clk
0:00:32.2]} 27. Bxf8 {[%clk 0:01:29]} 27... Kxf8 {[%clk 0:00:33.2]} 28. Rc3
{[%clk 0:01:30.1]} 28... Nd5 {[%clk 0:00:33]} 29. Rxc6 {[%clk 0:01:30.7]} 29...
Qd7 {[%clk 0:00:33.9]} 30. Qc5+ {[%clk 0:01:31.7]} 30... Kg8 {[%clk 0:00:32]}
31. Rxa6 {[%clk 0:01:31]} 31... Rc8 {[%clk 0:00:30.4]} 32. Rc6 {[%clk
0:01:21.6]} 32... Ra8 {[%clk 0:00:23.1]} 33. Qd6 {[%clk 0:01:11.1]} 33... Qe8
{[%clk 0:00:16]} 34. e4 {[%clk 0:01:06.9]} 34... Nf6 {[%clk 0:00:16.9]} 35. Rcb6
{[%clk 0:00:52.1]} 35... Rd8 {[%clk 0:00:06.1]} 36. Qxd8 {[%clk 0:00:52.4]}
36... Qxd8 {[%clk 0:00:07.2]} 37. Rb8 {[%clk 0:00:53.7]} 37... Qf8 {[%clk
0:00:08.8]} 38. Rxf8+ {[%clk 0:00:53.5]} 38... Kxf8 {[%clk 0:00:10.3]} 39. f3
{[%clk 0:00:55.3]} 39... g5 {[%clk 0:00:11.1]} 40. Kf2 {[%clk 0:00:54.6]} 40...
g4 {[%clk 0:00:11.2]} 41. e5 {[%clk 0:00:56]} 41... Nd7 {[%clk 0:00:12.1]} 42.
f4 {[%clk 0:00:57.3]} 42... Kg7 {[%clk 0:00:09.6]} 43. Ke3 {[%clk 0:00:58.4]}
43... Nf8 {[%clk 0:00:10.3]} 44. Rd1 {[%clk 0:00:59]} 44... h5 {[%clk
0:00:09.1]} 45. Rd8 {[%clk 0:00:59.9]} 45... Ng6 {[%clk 0:00:10]} 46. Re8 {[%clk
0:00:59.4]} 46... Nf8 {[%clk 0:00:09.2]} 47. Rd8 {[%clk 0:00:56.6]} 47... Ng6
{[%clk 0:00:10.3]} 48. Rd7 {[%clk 0:00:57.7]} 48... Kf8 {[%clk 0:00:11.2]} 49.
Kd4 {[%clk 0:00:51.7]} 49... Ne7 {[%clk 0:00:12]} 50. Kc5 {[%clk 0:00:53]} 50...
Nf5 {[%clk 0:00:12.4]} 51. Rd3 {[%clk 0:00:53.9]} 51... Kg7 {[%clk 0:00:10.6]}
52. Kc6 {[%clk 0:00:55.2]} 52... Kg6 {[%clk 0:00:10.1]} 53. Kd7 {[%clk
0:00:56.4]} 53... h4 {[%clk 0:00:11.6]} 54. Ke8 {[%clk 0:00:54.7]} 54... h3
{[%clk 0:00:10]} 55. Kf8 {[%clk 0:00:55.1]} 55... f6 {[%clk 0:00:10.3]} 56. Ke8
{[%clk 0:00:51.1]} 56... fxe5 {[%clk 0:00:10.8]} 57. fxe5 {[%clk 0:00:52.3]}
57... Kg7 {[%clk 0:00:11.1]} 58. Kd7 {[%clk 0:00:52.1]} 58... Kf7 {[%clk
0:00:12.4]} 59. Rd2 {[%clk 0:00:50.1]} 59... Ng7 {[%clk 0:00:12.4]} 60. Rf2+
{[%clk 0:00:51.1]} 60... Kg6 {[%clk 0:00:13.4]} 61. Ke7 {[%clk 0:00:48]} 61...
Kg5 {[%clk 0:00:14.3]} 62. Kf7 {[%clk 0:00:48.6]} 62... Nf5 {[%clk 0:00:14.5]}
63. Kxe6 {[%clk 0:00:49.8]} 1-0

[Event "*** Titled Tuesday Blitz"]
[Site "Chess.com"]
[Date "2020.01.07"]
[Round "8"]
[White "Kimster98"]
[Black "chess3054"]
[Result "1-0"]
[WhiteElo "2599"]
[BlackElo "2441"]
[TimeControl "180+2"]
[EndTime "14:55:46 PST"]
[Termination "Kimster98 won by resignation"]

1. Nf3 {[%clk 0:02:58.5]} 1... Nf6 {[%clk 0:02:57.7]} 2. c4 {[%clk 0:02:59.1]}
2... b6 {[%clk 0:02:58.1]} 3. g3 {[%clk 0:03:00.1]} 3... Bb7 {[%clk 0:02:59.4]}
4. Bg2 {[%clk 0:03:02]} 4... e6 {[%clk 0:03:00.7]} 5. O-O {[%clk 0:03:03]} 5...
Be7 {[%clk 0:03:02]} 6. Nc3 {[%clk 0:03:04.2]} 6... O-O {[%clk 0:03:01.5]} 7.
Re1 {[%clk 0:03:05.5]} 7... d5 {[%clk 0:02:40]} 8. cxd5 {[%clk 0:03:07.4]} 8...
exd5 {[%clk 0:02:40.8]} 9. d4 {[%clk 0:03:06]} 9... c5 {[%clk 0:02:41.9]} 10.
Bf4 {[%clk 0:03:00.9]} 10... Nc6 {[%clk 0:02:41.1]} 11. dxc5 {[%clk 0:03:00.8]}
11... bxc5 {[%clk 0:02:43]} 12. Ne5 {[%clk 0:03:02.4]} 12... Nxe5 {[%clk
0:02:18]} 13. Bxe5 {[%clk 0:03:04.3]} 13... Rc8 {[%clk 0:02:10.1]} 14. Qb3
{[%clk 0:02:49]} 14... Qb6 {[%clk 0:01:46.3]} 15. Rad1 {[%clk 0:02:06.9]} 15...
Rfd8 {[%clk 0:01:40.7]} 16. Qxb6 {[%clk 0:01:50.4]} 16... axb6 {[%clk
0:01:42.6]} 17. Bxf6 {[%clk 0:01:52.3]} 17... Bxf6 {[%clk 0:01:42.6]} 18. Nxd5
{[%clk 0:01:53.6]} 18... Bxd5 {[%clk 0:01:41.5]} 19. Rxd5 {[%clk 0:01:55.5]}
19... Rxd5 {[%clk 0:00:22.9]} 20. Bxd5 {[%clk 0:01:57.4]} 20... c4 {[%clk
0:00:24.1]} 21. b3 {[%clk 0:01:24.4]} 21... c3 {[%clk 0:00:24]} 22. Rc1 {[%clk
0:01:23.3]} 22... Kf8 {[%clk 0:00:22.2]} 23. Be4 {[%clk 0:01:16.9]} 23... b5
{[%clk 0:00:20.6]} 24. a4 {[%clk 0:01:12.3]} 24... bxa4 {[%clk 0:00:16.2]} 25.
bxa4 {[%clk 0:01:14.2]} 25... Rc4 {[%clk 0:00:16.4]} 26. Bc2 {[%clk 0:01:14.6]}
26... Ke7 {[%clk 0:00:12.4]} 27. e3 {[%clk 0:01:12.9]} 27... Be5 {[%clk
0:00:12.1]} 28. Kf1 {[%clk 0:01:14]} 28... Kd6 {[%clk 0:00:12.7]} 29. Ke2 {[%clk
0:01:15.5]} 29... Kc5 {[%clk 0:00:13.6]} 30. Kd3 {[%clk 0:01:16.7]} 30... Rb4
{[%clk 0:00:12.9]} 31. Ra1 {[%clk 0:01:05]} 31... Rb6 {[%clk 0:00:12]} 32. Ke4
{[%clk 0:01:04.4]} 32... Bc7 {[%clk 0:00:11.8]} 33. Bd3 {[%clk 0:00:55.5]} 33...
Rb8 {[%clk 0:00:10]} 34. a5 {[%clk 0:00:55.3]} 34... Re8+ {[%clk 0:00:11.2]} 35.
Kf3 {[%clk 0:00:56.3]} 35... Ra8 {[%clk 0:00:11.8]} 36. a6 {[%clk 0:00:57.4]}
36... Bb6 {[%clk 0:00:13]} 37. Ke2 {[%clk 0:00:58.3]} 37... Ba7 {[%clk
0:00:08.8]} 38. Kd1 {[%clk 0:00:59.5]} 38... Rb8 {[%clk 0:00:10]} 39. Rb1 {[%clk
0:00:53.5]} 39... Rxb1+ {[%clk 0:00:09.5]} 40. Bxb1 {[%clk 0:00:55.4]} 40... h6
{[%clk 0:00:07.7]} 41. Ba2 {[%clk 0:00:50]} 41... f6 {[%clk 0:00:07.9]} 42. Kc2
{[%clk 0:00:50.7]} 42... Kb4 {[%clk 0:00:09.4]} 43. Be6 {[%clk 0:00:48.9]} 43...
Bb6 {[%clk 0:00:10.3]} 44. Bd7 {[%clk 0:00:49.5]} 44... Ba7 {[%clk 0:00:11.6]}
45. Bf5 {[%clk 0:00:49.9]} 45... Bb6 {[%clk 0:00:12.9]} 46. Bg4 {[%clk
0:00:49.5]} 46... Ba7 {[%clk 0:00:14.2]} 47. Bh5 {[%clk 0:00:51.1]} 47... Bb6
{[%clk 0:00:15.5]} 48. Bd1 {[%clk 0:00:52.7]} 48... Ba7 {[%clk 0:00:16.8]} 49.
Kd3 {[%clk 0:00:51.6]} 49... Bb6 {[%clk 0:00:17.3]} 50. f4 {[%clk 0:00:51.6]}
50... Ka5 {[%clk 0:00:15.4]} 51. e4 {[%clk 0:00:52.5]} 51... Kxa6 {[%clk
0:00:16]} 52. Kxc3 {[%clk 0:00:54]} 52... Bg1 {[%clk 0:00:16]} 53. e5 {[%clk
0:00:45.4]} 53... fxe5 {[%clk 0:00:16.3]} 54. fxe5 {[%clk 0:00:46.1]} 54... Kb7
{[%clk 0:00:15.1]} 55. h4 {[%clk 0:00:41.7]} 55... Bf2 {[%clk 0:00:12.8]} 56. e6
{[%clk 0:00:42.2]} 56... Kc7 {[%clk 0:00:13.7]} 57. Bg4 {[%clk 0:00:39.4]} 57...
Bxg3 {[%clk 0:00:12.5]} 58. e7 {[%clk 0:00:40.4]} 58... Bxh4 {[%clk 0:00:07.5]}
59. e8=Q {[%clk 0:00:41.1]} 59... Bf6+ {[%clk 0:00:09.4]} 60. Kc4 {[%clk
0:00:42]} 60... Kd6 {[%clk 0:00:10.8]} 61. Qe6+ {[%clk 0:00:43.1]} 61... Kc7
{[%clk 0:00:12.3]} 62. Kb5 {[%clk 0:00:43.8]} 62... Bg5 {[%clk 0:00:12.3]} 63.
Qd7+ {[%clk 0:00:45.3]} 63... Kb8 {[%clk 0:00:13.4]} 64. Kc6 {[%clk 0:00:47.2]}
1-0

[Event "*** Titled Tuesday Blitz"]
[Site "Chess.com"]
[Date "2020.01.07"]
[Round "8"]
[White "guillembaches"]
[Black "kingofthenil"]
[Result "1-0"]
[WhiteElo "2320"]
[BlackElo "2468"]
[TimeControl "180+2"]
[EndTime "14:55:48 PST"]
[Termination "guillembaches won by resignation"]

1. e4 {[%clk 0:03:01.9]} 1... Nc6 {[%clk 0:03:00.4]} 2. Nf3 {[%clk 0:03:02.6]}
2... d6 {[%clk 0:03:01.1]} 3. Nc3 {[%clk 0:02:57.9]} 3... Nf6 {[%clk 0:03:03]}
4. h3 {[%clk 0:02:56.7]} 4... g6 {[%clk 0:03:03.8]} 5. d4 {[%clk 0:02:56.7]}
5... Bg7 {[%clk 0:03:05]} 6. Be2 {[%clk 0:02:57.2]} 6... O-O {[%clk 0:03:05.5]}
7. O-O {[%clk 0:02:53.9]} 7... a6 {[%clk 0:03:06.1]} 8. a4 {[%clk 0:02:48.8]}
8... e5 {[%clk 0:03:06]} 9. Be3 {[%clk 0:02:46.1]} 9... exd4 {[%clk 0:03:00.1]}
10. Nxd4 {[%clk 0:02:46.5]} 10... Re8 {[%clk 0:03:01.8]} 11. Nxc6 {[%clk
0:02:41.5]} 11... bxc6 {[%clk 0:03:00.2]} 12. Bf3 {[%clk 0:02:39.3]} 12... Rb8
{[%clk 0:02:56.2]} 13. Rb1 {[%clk 0:02:35.5]} 13... c5 {[%clk 0:02:45.6]} 14.
Qd2 {[%clk 0:01:54]} 14... Bb7 {[%clk 0:02:32.7]} 15. Bg5 {[%clk 0:01:49.9]}
15... h6 {[%clk 0:02:05.4]} 16. Bxh6 {[%clk 0:01:46.3]} 16... Nxe4 {[%clk
0:02:01.4]} 17. Bxe4 {[%clk 0:01:25.7]} 17... Bxe4 {[%clk 0:02:00.8]} 18. Bxg7
{[%clk 0:01:25.2]} 18... Kxg7 {[%clk 0:02:00.4]} 19. Nxe4 {[%clk 0:01:10.3]}
19... Rxe4 {[%clk 0:02:02.3]} 20. b3 {[%clk 0:01:11.5]} 20... Qf6 {[%clk
0:02:01.4]} 21. Rfe1 {[%clk 0:01:10.4]} 21... Rd4 {[%clk 0:01:53.9]} 22. Qe3
{[%clk 0:01:02.8]} 22... Rh8 {[%clk 0:01:50.3]} 23. Rbd1 {[%clk 0:00:59.1]}
23... Rxd1 {[%clk 0:01:48.7]} 24. Rxd1 {[%clk 0:01:01]} 24... Rh5 {[%clk
0:01:50.6]} 25. Rd3 {[%clk 0:00:51.2]} 25... Re5 {[%clk 0:01:48.2]} 26. Qd2
{[%clk 0:00:52.1]} 26... Re4 {[%clk 0:01:39.7]} 27. Re3 {[%clk 0:00:50.8]} 27...
Rd4 {[%clk 0:01:17.5]} 28. Qe2 {[%clk 0:00:51.7]} 28... a5 {[%clk 0:01:14.9]}
29. Rd3 {[%clk 0:00:50.8]} 29... Rf4 {[%clk 0:01:14.7]} 30. Re3 {[%clk
0:00:45.7]} 30... c4 {[%clk 0:01:13]} 31. Re4 {[%clk 0:00:32.5]} 31... Rxe4
{[%clk 0:01:01.7]} 32. Qxe4 {[%clk 0:00:34.4]} 32... Qa1+ {[%clk 0:00:50.7]} 33.
Kh2 {[%clk 0:00:34.5]} 33... cxb3 {[%clk 0:00:52.6]} 34. cxb3 {[%clk 0:00:35.1]}
34... Qc3 {[%clk 0:00:54.5]} 35. Qd5 {[%clk 0:00:30]} 35... Qe5+ {[%clk
0:00:40.4]} 36. Qxe5+ {[%clk 0:00:18.8]} 36... dxe5 {[%clk 0:00:42.3]} 37. Kg3
{[%clk 0:00:18.7]} 37... f5 {[%clk 0:00:38.3]} 38. Kf3 {[%clk 0:00:19.7]} 38...
Kf6 {[%clk 0:00:40.2]} 39. g4 {[%clk 0:00:17.3]} 39... Kg5 {[%clk 0:00:40.6]}
40. gxf5 {[%clk 0:00:17.7]} 40... gxf5 {[%clk 0:00:41.3]} 41. Ke3 {[%clk
0:00:18.8]} 41... Kh4 {[%clk 0:00:41.3]} 42. b4 {[%clk 0:00:19.9]} 42... f4+
{[%clk 0:00:25.5]} 43. Kd2 {[%clk 0:00:18.7]} 43... axb4 {[%clk 0:00:27.4]} 44.
a5 {[%clk 0:00:19.4]} 44... e4 {[%clk 0:00:29.3]} 45. a6 {[%clk 0:00:20.1]}
45... b3 {[%clk 0:00:25.8]} 46. a7 {[%clk 0:00:20.7]} 46... Kxh3 {[%clk
0:00:20.2]} 47. a8=Q {[%clk 0:00:21]} 47... Kg2 {[%clk 0:00:22.1]} 48. Qxe4+
{[%clk 0:00:21.1]} 48... f3 {[%clk 0:00:22.8]} 49. Qe3 {[%clk 0:00:22.2]} 49...
c5 {[%clk 0:00:22.5]} 50. Kc3 {[%clk 0:00:21.9]} 50... c4 {[%clk 0:00:22.3]} 51.
Kb2 {[%clk 0:00:22.7]} 51... Kh2 {[%clk 0:00:14.3]} 52. Qxf3 {[%clk 0:00:23.5]}
52... c3+ {[%clk 0:00:15.2]} 53. Qxc3 {[%clk 0:00:23.2]} 53... Kg2 {[%clk
0:00:14.2]} 54. f4 {[%clk 0:00:23.9]} 1-0